fUST/lending_fUST_20250527
["ID","MTS","AMOUNT","RATE_DAILY","PERIOD"]
[362488688,1748338234386,-400.0,0.00019178,2]
[362488689,1748338234395,-430.0,0.00019178,2]
[362488690,1748338234405,-430.0,0.00019178,2]
[362488691,1748338234415,-435.64955504,0.00019178,2]
[362488692,1748338234425,-430.0,0.00019178,2]
[362488693,1748338234435,-430.0,0.00019178,2]
[362488694,1748338234446,-430.0,0.00019178,2]
[362488695,1748338234456,-430.0,0.00019178,2]
[362488696,1748338234467,-430.0,0.00019178,2]
[362488697,1748338234476,-430.0,0.00019178,2]
[362488698,1748338234487,-430.0,0.00019178,2]
[362488699,1748338234497,-421.25219529,0.00019178,2]
[362488700,1748338234507,-272.47901835,0.00019178,2]
[362488701,1748338234517,-430.0,0.00019178,2]
[362488702,1748338234527,-415.7923205,0.00019178,2]
[362488703,1748338234537,-430.0,0.00019178,2]
[362488704,1748338234547,-506.45264645,0.00019178,2]
[362488705,1748338234561,-430.0,0.00019178,2]
[362488706,1748338234571,-340.0,0.00019178,2]
[362488707,1748338234581,-430.0,0.00019178,2]
[362488708,1748338234591,-368.99271537,0.00019178,2]
[362488709,1748338234602,-300.0,0.00019178,2]
[362488710,1748338234611,-430.0,0.00019178,2]
[362488711,1748338234621,-430.0,0.00019178,2]
[362488712,1748338234631,-430.0,0.00019178,2]
[362488713,1748338234641,-430.0,0.00019178,2]
[362488714,1748338234651,-430.0,0.00019178,2]
[362488715,1748338234662,-430.0,0.00019178,2]
[362488716,1748338234672,-430.0,0.00019178,2]
[362488717,1748338234683,-430.0,0.00019178,2]
[362488718,1748338234693,-430.0,0.00019178,2]
[362488719,1748338234704,-430.0,0.00019178,2]
[362488720,1748338234714,-430.0,0.00019178,2]
[362488721,1748338234724,-430.0,0.00019178,2]
[362488722,1748338234734,-430.0,0.00019178,2]
[362488723,1748338234743,-430.0,0.00019178,2]
[362488724,1748338234753,-430.0,0.00019178,2]
[362488725,1748338234763,-435.4862229,0.00019178,2]
[362488726,1748338234772,-400.85864954,0.00019178,2]
[362488727,1748338234782,-430.0,0.00019178,2]
[362488728,1748338234791,-433.3272416,0.00019178,2]
[362488729,1748338234801,-430.0,0.00019178,2]
[362488730,1748338234811,-430.0,0.00019178,2]
[362488731,1748338234821,-430.0,0.00019178,2]
[362488732,1748338234830,-470.0,0.00019178,2]
[362488733,1748338234840,-430.0,0.00019178,2]
[362488734,1748338234849,-400.0,0.00019178,2]
[362488735,1748338234859,-320.0,0.00019178,2]
[362488736,1748338234868,-400.0,0.00019178,2]
[362488737,1748338234878,-310.20887027,0.00019178,2]
[362488738,1748338234889,-430.0,0.00019178,2]
[362488739,1748338234899,-430.0,0.00019178,2]
[362488740,1748338234908,-430.0,0.00019178,2]
[362488741,1748338234918,-430.0,0.00019178,2]
[362488742,1748338234927,-7461.89,0.00019178,2]
[362488743,1748338234937,-430.0,0.00019178,2]
[362488744,1748338234946,-430.0,0.00019178,2]
[362488745,1748338234956,-430.0,0.00019178,2]
[362488746,1748338234966,-430.0,0.00019178,2]
[362488747,1748338234975,-430.0,0.00019178,2]
[362488748,1748338234985,-430.0,0.00019178,2]
[362488749,1748338234994,-430.0,0.00019178,2]
[362488750,1748338235004,-432.95,0.00019178,2]
[362488751,1748338235014,-430.0,0.00019178,2]
[362488752,1748338235023,-458.34631231,0.00019178,2]
[362488753,1748338235033,-1030.41,0.00019178,2]
[362488754,1748338235042,-430.0,0.00019178,2]
[362488755,1748338235052,-430.0,0.00019178,2]
[362488756,1748338235062,-430.0,0.00019178,2]
[362488757,1748338235071,-430.0,0.00019178,2]
[362488758,1748338235081,-407.84,0.00019178,2]
[362488759,1748338235090,-430.0,0.00019178,2]
[362488760,1748338235100,-430.0,0.00019178,2]
[362488761,1748338235109,-430.0,0.00019178,2]
[362488762,1748338235119,-430.0,0.00019178,2]
[362488763,1748338235129,-430.0,0.00019178,2]
[362488764,1748338235139,-430.0,0.00019178,2]
[362488765,1748338235148,-430.0,0.00019178,2]
[362488766,1748338235159,-430.0,0.00019178,2]
[362488767,1748338235170,-430.0,0.00019178,2]
[362488768,1748338235179,-430.0,0.00019178,2]
[362488769,1748338235189,-430.0,0.00019178,2]
[362488770,1748338235198,-430.0,0.00019178,2]
[362488771,1748338235208,-430.0,0.00019178,2]
[362488772,1748338235218,-430.0,0.00019178,2]
[362488773,1748338235228,-430.0,0.00019178,2]
[362488774,1748338235237,-430.0,0.00019178,2]
[362488775,1748338235246,-430.0,0.00019178,2]
[362488776,1748338235255,-430.0,0.00019178,2]
[362488777,1748338235265,-430.0,0.00019178,2]
[362488778,1748338235274,-430.0,0.00019178,2]
[362488779,1748338235285,-430.0,0.00019178,2]
[362488780,1748338235299,-430.0,0.00019178,2]
[362488781,1748338235308,-430.0,0.00019178,2]
[362488782,1748338235318,-430.0,0.00019178,2]
[362488783,1748338235328,-430.0,0.00019178,2]
[362488784,1748338235339,-430.0,0.00019178,2]
[362488785,1748338235349,-430.0,0.00019178,2]
[362488786,1748338235358,-430.0,0.00019178,2]
[362488787,1748338235369,-430.0,0.00019178,2]
[362488788,1748338235380,-430.0,0.00019178,2]
[362488789,1748338235389,-430.0,0.00019178,2]
[362488790,1748338235399,-430.0,0.00019178,2]
[362488791,1748338235408,-430.0,0.00019178,2]
[362488792,1748338235418,-430.0,0.00019178,2]
[362488793,1748338235427,-430.0,0.00019178,2]
[362488794,1748338235437,-430.0,0.00019178,2]
[362488795,1748338235446,-430.0,0.00019178,2]
[362488796,1748338235455,-430.0,0.00019178,2]
[362488797,1748338235465,-500.0,0.00019257,2]
[362488798,1748338235474,-420.0,0.00019434,2]
[362488799,1748338235484,-420.0,0.00019434,2]
[362488800,1748338235493,-430.0,0.00019452,2]
[362488801,1748338235502,-430.0,0.00019452,2]
[362488802,1748338235512,-503.26608209,0.00019452,2]
[362488803,1748338235522,-430.0,0.00019452,2]
[362488804,1748338235531,-431.39593358,0.00019452,2]
[362488805,1748338235541,-430.0,0.00019452,2]
[362488806,1748338235551,-430.0,0.00019452,2]
[362488807,1748338235561,-430.0,0.00019452,2]
[362488808,1748338235570,-430.0,0.00019452,2]
[362488809,1748338235579,-430.0,0.00019452,2]
[362488810,1748338235589,-430.0,0.00019452,2]
[362488811,1748338235598,-360.0,0.00019452,2]
[362488812,1748338235608,-430.0,0.00019452,2]
[362488813,1748338235618,-430.0,0.00019452,2]
[362488814,1748338235628,-430.0,0.00019452,2]
[362488815,1748338235638,-7461.89,0.00019452,2]
[362488816,1748338235647,-430.0,0.00019452,2]
[362488817,1748338235657,-432.95,0.00019452,2]
[362488818,1748338235667,-1030.41,0.00019452,2]
[362488819,1748338235676,-430.0,0.00019452,2]
[362488820,1748338235686,-430.0,0.00019452,2]
[362488821,1748338235696,-430.0,0.00019452,2]
[362488822,1748338235706,-430.0,0.00019452,2]
[362488823,1748338235715,-523.72663224,0.00019452,2]
[362488824,1748338235726,-430.0,0.00019452,2]
[362488825,1748338235735,-364.57132188,0.00019452,2]
[362488826,1748338235745,-430.0,0.00019452,2]
[362488827,1748338235755,-430.0,0.00019452,2]
[362488828,1748338235765,-430.0,0.00019452,2]
[362488829,1748338235775,-430.0,0.00019452,2]
[362488830,1748338235784,-430.0,0.00019452,2]
[362488831,1748338235794,-430.0,0.00019452,2]
[362488832,1748338235803,-430.0,0.00019452,2]
[362488833,1748338235814,-430.0,0.00019452,2]
[362488834,1748338235825,-480.0,0.0001953,2]
[362488835,1748338235835,-500.0,0.00019565,2]
[362488836,1748338235845,-502.26742207,0.00019565,2]
[362488837,1748338235855,-500.0,0.00019565,2]
[362488838,1748338235864,-449.4263735,0.00019651,2]
[362488839,1748338235874,-500.0,0.00019658,2]
[362488840,1748338235883,-503.63586101,0.00019658,2]
[362488841,1748338235893,-430.0,0.00019726,2]
[362488842,1748338235903,-430.0,0.00019726,2]
[362488843,1748338235912,-430.0,0.00019726,2]
[362488844,1748338235922,-7461.89,0.00019726,2]
[362488845,1748338235932,-430.0,0.00019726,2]
[362488846,1748338235941,-432.95,0.00019726,2]
[362488847,1748338235951,-1030.41,0.00019726,2]
[362488848,1748338235961,-430.0,0.00019726,2]
[362488849,1748338235970,-430.0,0.00019726,2]
[362488850,1748338235979,-278.40207684,0.00019726,2]
[362488851,1748338236153,-430.0,0.00019726,2]
[362488852,1748338236164,-430.0,0.00019726,2]
[362488853,1748338236175,-430.0,0.00019726,2]
[362488854,1748338236184,-430.0,0.00019726,2]
[362488855,1748338236194,-430.0,0.00019726,2]
[362488856,1748338236205,-430.0,0.00019726,2]
[362488857,1748338236215,-430.0,0.00019726,2]
[362488858,1748338236225,-430.0,0.00019726,2]
[362488859,1748338236236,-12656.54583329,0.00019762,2]
[362488860,1748338236245,-1000.0,0.00019805,2]
[362488861,1748338236256,-212.29971829,0.00019956,2]
[362488862,1748338236266,-430.0,0.0002,2]
[362488863,1748338236276,-430.0,0.0002,2]
[362488864,1748338236286,-430.0,0.0002,2]
[362488865,1748338236300,-7461.89,0.0002,2]
[362488866,1748338236311,-430.0,0.0002,2]
[362488867,1748338236320,-432.95,0.0002,2]
[362488868,1748338236331,-1030.41,0.0002,2]
[362488869,1748338236341,-430.0,0.0002,2]
[362488870,1748338236351,-430.0,0.0002,2]
[362488871,1748338236361,-430.0,0.0002,2]
[362488872,1748338236373,-430.0,0.0002,2]
[362488873,1748338236382,-430.0,0.0002,2]
[362488874,1748338236392,-430.0,0.0002,2]
[362488875,1748338236402,-430.0,0.0002,2]
[362488876,1748338236412,-430.0,0.0002,2]
[362488877,1748338236422,-430.0,0.0002,2]
[362488878,1748338236431,-430.0,0.0002,2]
[362488879,1748338236441,-150.0,0.00020065,2]
[362488880,1748338236450,-1000.0,0.00020113,2]
[362488881,1748338236461,-1000.0,0.00020113,2]
[362488882,1748338236471,-257.86202495,0.00020181,2]
[362488883,1748338236480,-430.0,0.00020273,2]
[362488884,1748338236490,-430.0,0.00020273,2]
[362488885,1748338236499,-430.0,0.00020273,2]
[362488886,1748338236508,-7461.89,0.00020273,2]
[362488887,1748338236518,-430.0,0.00020273,2]
[362488888,1748338236527,-432.95,0.00020273,2]
[362488889,1748338236538,-1030.41,0.00020273,2]
[362488890,1748338236548,-430.0,0.00020273,2]
[362488891,1748338236558,-430.0,0.00020273,2]
[362488892,1748338236568,-430.0,0.00020273,2]
[362488893,1748338236578,-430.0,0.00020273,2]
[362488894,1748338236587,-430.0,0.00020273,2]
[362488895,1748338236597,-430.0,0.00020273,2]
[362488896,1748338236607,-430.0,0.00020273,2]
[362488897,1748338236616,-430.0,0.00020273,2]
[362488898,1748338236625,-430.0,0.00020273,2]
[362488899,1748338236635,-1500.0,0.00020353,2]
[362488900,1748338236644,-430.0,0.00020547,2]
[362488901,1748338236654,-385.4591698,0.00020547,2]
[362488902,1748338236667,-430.0,0.00020547,2]
[362488903,1748338236678,-7461.89,0.00020547,2]
[362488904,1748338236688,-430.0,0.00020547,2]
[362488905,1748338236699,-432.95,0.00020547,2]
[362488906,1748338236710,-1030.41,0.00020547,2]
[362488907,1748338236719,-430.0,0.00020547,2]
[362488908,1748338236729,-430.0,0.00020547,2]
[362488909,1748338236738,-430.0,0.00020547,2]
[362488910,1748338236748,-430.0,0.00020547,2]
[362488911,1748338236757,-430.0,0.00020547,2]
[362488912,1748338236766,-430.0,0.00020547,2]
[362488913,1748338236775,-430.0,0.00020547,2]
[362488914,1748338236785,-430.0,0.00020547,2]
[362488915,1748338236794,-430.0,0.00020547,2]
[362488916,1748338236804,-1512.30549638,0.00020661,2]
[362488917,1748338236814,-430.0,0.00020821,2]
[362488918,1748338236824,-7461.89,0.00020821,2]
[362488919,1748338236835,-430.0,0.00020821,2]
[362488920,1748338236845,-432.95,0.00020821,2]
[362488921,1748338236856,-1030.41,0.00020821,2]
[362488922,1748338236865,-430.0,0.00020821,2]
[362488923,1748338236875,-242.49149257,0.00020821,2]
[362488924,1748338236884,-430.0,0.00020821,2]
[362488925,1748338236893,-430.0,0.00020821,2]
[362488926,1748338236903,-430.0,0.00020821,2]
[362488927,1748338236912,-430.0,0.00020821,2]
[362488928,1748338236921,-430.0,0.00020821,2]
[362488929,1748338236930,-923.83919666,0.00020828,2]
[362488930,1748338236940,-164.10510166,0.00020937,2]
[362488931,1748338236950,-150.0,0.00020977,2]
[362488932,1748338236959,-430.0,0.00021095,2]
[362488933,1748338236969,-7461.89,0.00021095,2]
[362488934,1748338236978,-432.95,0.00021095,2]
[362488935,1748338236988,-1030.41,0.00021095,2]
[362488936,1748338236997,-370.88,0.00021095,2]
[362488937,1748338237006,-430.0,0.00021095,2]
[362488938,1748338237015,-373.66,0.00021095,2]
[362488939,1748338237025,-430.0,0.00021095,2]
[362488940,1748338237034,-430.0,0.00021095,2]
[362488941,1748338237043,-2725.4,0.00021107,4]
[362488942,1748338237053,-2725.4,0.00021107,4]
[362488943,1748338237062,-2725.4,0.00021107,4]
[362488944,1748338237072,-2725.4,0.00021107,4]
[362488945,1748338237082,-2725.4,0.00021107,4]
[362488946,1748338237091,-2725.4,0.00021107,4]
[362488947,1748338237100,-2725.4,0.00021107,4]
[362488948,1748338237110,-2725.4,0.00021107,4]
[362488949,1748338237119,-2725.4,0.00021107,4]
[362488950,1748338237129,-2725.3,0.00021107,4]
[362488951,1748338237139,-587.0,0.00021209,2]
[362488952,1748338237148,-430.0,0.00021369,2]
[362488953,1748338237158,-7461.89,0.00021369,2]
[362488954,1748338237167,-432.95,0.00021369,2]
[362488955,1748338237176,-1030.41,0.00021369,2]
[362488956,1748338237186,-430.0,0.00021369,2]
[362488957,1748338237196,-430.0,0.00021369,2]
[362488958,1748338237205,-281.97968789,0.00021369,2]
[362488959,1748338237214,-430.0,0.00021643,2]
[362488960,1748338237224,-7461.89,0.00021643,2]
[362488961,1748338237234,-432.95,0.00021643,2]
[362488962,1748338237243,-1030.41,0.00021643,2]
[362488963,1748338237252,-214.53,0.00021643,2]
[362488964,1748338237262,-430.0,0.00021643,2]
[362488965,1748338237270,-151.0,0.000217,3]
[362488966,1748338237280,-250.0,0.00021741,2]
[362488967,1748338237291,-30941.27750072,0.000218,2]
[362488968,1748338237300,-150.0,0.00021889,2]
[362488969,1748338237309,-430.0,0.00021917,2]
[362488970,1748338237318,-7461.89,0.00021917,2]
[362488971,1748338237328,-432.95,0.00021917,2]
[362488972,1748338237338,-1030.41,0.00021917,2]
[362488973,1748338237347,-430.0,0.00021917,2]
[362488974,1748338237357,-207.4,0.00022117,2]
[362488975,1748338237371,-151.0,0.00022117,2]
[362488976,1748338237381,-430.0,0.00022191,2]
[362488977,1748338237390,-7461.89,0.00022191,2]
[362488978,1748338237399,-432.95,0.00022191,2]
[362488979,1748338237408,-1030.41,0.00022191,2]
[362488980,1748338237419,-430.0,0.00022191,2]
[362488981,1748338237428,-430.0,0.00022465,2]
[362488982,1748338237437,-7461.89,0.00022465,2]
[362488983,1748338237446,-432.95,0.00022465,2]
[362488984,1748338237455,-1030.41,0.00022465,2]
[362488985,1748338237464,-430.0,0.00022465,2]
[362488986,1748338237473,-151.0,0.000225,9]
[362488987,1748338237483,-430.0,0.00022739,2]
[362488988,1748338237491,-7461.89,0.00022739,2]
[362488989,1748338237501,-432.95,0.00022739,2]
[362488990,1748338237510,-1030.41,0.00022739,2]
[362488991,1748338237519,-430.0,0.00022739,2]
[362488992,1748338237528,-923.83919666,0.00022791,2]
[362488993,1748338237537,-150.0,0.00022801,2]
[362488994,1748338237546,-430.0,0.00023013,2]
[362488995,1748338237556,-7461.89,0.00023013,2]
[362488996,1748338237565,-432.95,0.00023013,2]
[362488997,1748338237575,-1030.41,0.00023013,2]
[362488998,1748338237584,-430.0,0.00023013,2]
[362488999,1748338237593,-617.0,0.00023146,2]
[362489000,1748338237603,-430.0,0.00023287,2]
[362489001,1748338237612,-7461.89,0.00023287,2]
[362489002,1748338237622,-432.95,0.00023287,2]
[362489003,1748338237631,-1030.41,0.00023287,2]
[362489004,1748338237640,-430.0,0.00023287,2]
[362489005,1748338237650,-151.0,0.000233,10]
[362489006,1748338237659,-215.0738,0.00023486,2]
[362489007,1748338237669,-430.0,0.00023561,2]
[362489008,1748338237678,-7461.89,0.00023561,2]
[362489009,1748338237688,-432.95,0.00023561,2]
[362489010,1748338237698,-1030.41,0.00023561,2]
[362489011,1748338237707,-430.0,0.00023561,2]
[362489012,1748338237717,-1023.74,0.00023568,3]
[362489013,1748338237727,-150.0,0.00023713,2]
[362489014,1748338237736,-430.0,0.00023835,2]
[362489015,1748338237745,-7461.89,0.00023835,2]
[362489016,1748338237755,-432.95,0.00023835,2]
[362489017,1748338237765,-1030.41,0.00023835,2]
[362489018,1748338237774,-341.33669742,0.00023835,2]
[362489019,1748338237784,-2061.0,0.00023841,3]
[362489020,1748338237793,-150.0,0.000241,2]
[362489021,1748338237803,-151.0,0.000241,5]
[362489022,1748338237812,-430.0,0.00024109,2]
[362489023,1748338237822,-7461.89,0.00024109,2]
[362489024,1748338237831,-432.95,0.00024109,2]
[362489025,1748338237840,-1030.41,0.00024109,2]
[362489026,1748338237850,-158.3360012,0.00024173,2]
[362489027,1748338237860,-352.4077528,0.00024173,2]
[362489028,1748338237870,-571.8642545,0.00024173,2]
[362489029,1748338237879,-158.3360012,0.00024173,2]
[362489032,1748338237888,-571.8642545,0.00024173,2]
[362489034,1748338237897,-158.3360012,0.00024173,2]
[362489035,1748338237906,-571.8642545,0.00024173,2]
[362489036,1748338237915,-158.3360012,0.00024173,2]
[362489038,1748338237925,-571.8642545,0.00024173,2]
[362489039,1748338237934,-158.3360012,0.00024173,2]
[362489040,1748338237943,-571.8642545,0.00024173,2]
[362489041,1748338237952,-157.2184337,0.00024173,2]
[362489042,1748338237962,-387.0267596,0.00024173,2]
[362489043,1748338237971,-653.72746393,0.00024289,2]
[362489044,1748338237980,-430.0,0.00024383,2]
[362489045,1748338237990,-7461.89,0.00024383,2]
[362489046,1748338237999,-432.95,0.00024383,2]
[362489047,1748338238008,-1030.41,0.00024383,2]
[362489048,1748338238018,-427.264387,0.000245,3]
[362489049,1748338238026,-58727.39491986,0.000245,7]
[362489050,1748338238036,-44431.08673418,0.000246,5]
[362489051,1748338238046,-14581.0,0.0002465,30]
[362489052,1748338238055,-430.0,0.00024657,2]
[362489054,1748338238064,-7461.89,0.00024657,2]
[362489056,1748338238074,-432.95,0.00024657,2]
[362489058,1748338238084,-1030.41,0.00024657,2]
[362489060,1748338238094,-210.59932003,0.00024658,2]
[362489062,1748338238103,-32946.29854952,0.0002466,120]
[362489064,1748338238113,-423.35,0.00024736,15]
[362489066,1748338238123,-160.0,0.00024749,2]
[362489067,1748338238132,-14451.25280392,0.0002475,2]
[362489068,1748338238142,-923.83919666,0.00024755,2]
[362489070,1748338238152,-207.4,0.00024855,2]
[362489071,1748338238162,-500.0,0.00024873,2]
[362489073,1748338238171,-500.0,0.00024873,2]
[362489074,1748338238180,-500.42355388,0.00024873,2]
[362489075,1748338238191,-150.0,0.00024873,2]
[362489076,1748338238201,-608.64682434,0.00024873,2]
[362489077,1748338238211,-227.58,0.000249,31]
[362489079,1748338238220,-227.58,0.000249,31]
[362489080,1748338238229,-227.58,0.000249,31]
[362489081,1748338238239,-227.58,0.000249,31]
[362489082,1748338238248,-227.58,0.000249,31]
[362489083,1748338238257,-227.58,0.000249,31]
[362489084,1748338238266,-227.58,0.000249,31]
[362489085,1748338238275,-227.58,0.000249,31]
[362489086,1748338238284,-227.58,0.000249,31]
[362489087,1748338238298,-227.58,0.000249,31]
[362489088,1748338238307,-227.58,0.000249,31]
[362489089,1748338238316,-227.58,0.000249,31]
[362489090,1748338238326,-227.58,0.000249,31]
[362489091,1748338238338,-227.58,0.000249,31]
[362489092,1748338238348,-227.58,0.000249,31]
[362489093,1748338238358,-227.58,0.000249,31]
[362489094,1748338238369,-4455.16177389,0.000249,2]
[362489095,1748338238379,-71438.46439955,0.000249,2]
[362489098,1748338238474,-51699.73967375,0.000249,2]
[362489099,1748338238627,-66170.84425522,0.000249,2]
[362489100,1748338239054,-500.0,0.00019177,2]
[362489101,1748338239064,-279.31288222,0.00019177,2]
[362489102,1748338239074,-500.0,0.00019177,2]
[362489103,1748338239084,-500.0,0.00019177,2]
[362489104,1748338239094,-436.44009947,0.00019177,2]
[362489105,1748338239103,-500.0,0.00019177,2]
[362489106,1748338239112,-500.0,0.00019177,2]
[362489107,1748338239122,-500.0,0.00019177,2]
[362489108,1748338239132,-500.0,0.00019177,2]
[362489109,1748338239142,-500.0,0.00019177,2]
[362489110,1748338239152,-115.74579899,0.00019177,2]
[362489111,1748338239192,-384.25420101,0.00019177,2]
[362489112,1748338239203,-438.18420074,0.00019177,2]
[362489113,1748338239212,-192.59842693,0.00019177,2]
[362489114,1748338239224,-307.40157307,0.00019177,2]
[362489115,1748338239234,-500.0,0.00019177,2]
[362489116,1748338239244,-500.0,0.00019177,2]
[362489117,1748338239254,-500.0,0.00019177,2]
[362489118,1748338239264,-500.0,0.00019177,2]
[362489119,1748338239274,-403.04017971,0.00019178,2]
[362489120,1748338239283,-150.0,0.00024625,2]
[362489121,1748338239294,-433.02518861,0.00024658,2]
[362489122,1748338239303,-776.2052,0.00024739,15]
[362489123,1748338239313,-8393.69442819,0.000249,2]
[362489130,1748338240609,-572.325,0.000249,2]
[362489141,1748338243384,-682.1,0.00024739,15]
[362489142,1748338243395,-2401.03580533,0.000249,2]
[362489143,1748338243407,-585.13435132,0.000249,2]
[362489144,1748338243492,-498442.71722964,0.000249,2]
[362489145,1748338243502,-166.26934282,0.00024931,2]
[362489146,1748338243511,-432.95,0.00024931,2]
[362489147,1748338243521,-1030.41,0.00024931,2]
[362489148,1748338243530,-4455.16177388,0.00024959,2]
[362489149,1748338243539,-155.964,0.00024989,2]
[362489150,1748338243550,-19004.27583138,0.0002499,2]
[362489151,1748338243559,-125398.19882648,0.00025,2]
[362489188,1748338246505,-3041.29755575,0.000249,12]
[362498245,1748338361831,258.4364213,0.00021783,120]
[362498251,1748338426789,164.752036,0.00013699,2]
[362498252,1748338742053,-2920.0,0.00018909,2]
[362498254,1748338938322,300123.04285557,0.00024,120]
[362498255,1748338949787,201788.97420338,0.00024,120]
[362498259,1748339110042,110811.02874107,0.00024658,120]
[362498260,1748339171053,262.7825074,0.00024657,120]
[362498263,1748339225454,254.1933298,0.00015924,2]
[362498264,1748339229083,-300.0,0.0001618,2]
[362498265,1748339229104,-4650.0,0.00016181,2]
[362498266,1748339235137,-3926.16094621,0.00016181,2]
[362498267,1748339247128,-16323.83905379,0.00016181,2]
[362498268,1748339247152,-1387.03928184,0.0001669,2]
[362498269,1748339254084,-2844.83049016,0.0001669,2]
[362498280,1748339353191,-5000.0,0.0001669,2]
[362498281,1748339353211,-250.0,0.00016859,2]
[362498282,1748339353232,-300.0,0.00016997,2]
[362498283,1748339353254,-300.0,0.00016997,2]
[362498284,1748339353275,-300.0,0.00016998,2]
[362498285,1748339353296,-1200.0,0.00016998,2]
[362498286,1748339353316,-300.0,0.00016998,2]
[362498287,1748339353337,-300.0,0.00016998,2]
[362498288,1748339353358,-160.0,0.00016999,2]
[362498289,1748339353380,-5000.0,0.00016999,2]
[362498290,1748339353404,-500.0,0.00016999,2]
[362498291,1748339353425,-556.83954084,0.00016999,2]
[362498292,1748339353450,-500.0,0.00016999,2]
[362498293,1748339353473,-500.0,0.00016999,2]
[362498294,1748339353495,-315.22453851,0.00016999,2]
[362498295,1748339353519,-500.0,0.00016999,2]
[362498296,1748339353543,-500.0,0.00016999,2]
[362498297,1748339353564,-500.0,0.00016999,2]
[362498298,1748339353587,-500.0,0.00016999,2]
[362498299,1748339353609,-500.0,0.00016999,2]
[362498300,1748339353630,-256.72894052,0.00016999,2]
[362498301,1748339353653,-500.0,0.00016999,2]
[362498302,1748339353676,-500.0,0.00016999,2]
[362498303,1748339353699,-500.0,0.00016999,2]
[362498304,1748339353722,-500.0,0.00016999,2]
[362498305,1748339353747,-500.0,0.00016999,2]
[362498306,1748339353770,-500.0,0.00016999,2]
[362498307,1748339353794,-500.0,0.00016999,2]
[362498308,1748339353816,-500.0,0.00016999,2]
[362498309,1748339353840,-500.0,0.00016999,2]
[362498310,1748339353863,-500.0,0.00016999,2]
[362498311,1748339353885,-350.0,0.00016999,2]
[362498312,1748339353910,-195.0,0.00016999,2]
[362498313,1748339353933,-500.0,0.00016999,2]
[362498314,1748339353954,-500.0,0.00016999,2]
[362498315,1748339353974,-392.75968266,0.00016999,2]
[362498316,1748339353998,-500.0,0.00016999,2]
[362498317,1748339354020,-483.06753868,0.00016999,2]
[362498318,1748339354043,-479.60376789,0.00016999,2]
[362498319,1748339354065,-500.0,0.00016999,2]
[362498320,1748339354086,-160606.76658103,0.00017,3]
[362498321,1748339356103,-3411.21329219,0.00017,3]
[362498322,1748339403115,2186.0,0.00016,2]
[362498349,1748339432657,-74.32824607,0.00017,3]
[362498351,1748339432669,-5000.0,0.00017549,2]
[362498352,1748339432678,-162.98449013,0.00017726,2]
[362498353,1748339432688,-165.0993129,0.00017826,2]
[362498354,1748339432700,-348.536854,0.00018099,2]
[362498355,1748339432710,-420.0,0.00018565,2]
[362498356,1748339432726,-1200.0,0.00018769,2]
[362498357,1748339432738,-184.76783934,0.00019078,2]
[362498358,1748339432748,-11164.6449981,0.000191,2]
[362498389,1748339438866,-1967.87537062,0.000191,2]